bitfinex/quotes_ETHUSD_20240910
["timestamp","ask_amount","ask_price","bid_price","bid_amount"]
[1725985258296,2.4043,2336.6,2336.2,2.0]
[1725985259504,0.99418178,2336.9,2336.2,2.0]
[1725985260089,0.10699434,2336.9,2336.2,2.0]
[1725985260284,2.4784,2337.0,2336.5,2.0]
[1725985261416,3.19840304,2337.2,2336.5,6.12630663]
[1725985261735,0.0026156,2337.2,2336.8,2.0]
[1725985261916,0.0026156,2337.2,2336.8,5.0]
[1725985265017,0.0026156,2337.2,2336.8,2.0]
[1725985265528,0.0026156,2337.2,2336.6,3.0]
[1725985265529,2.4267,2337.1,2336.6,3.0]
[1725985265829,2.4267,2337.1,2336.5,5.0]
[1725985265830,0.10698189,2337.0,2336.5,5.0]
[1725985266009,0.10698189,2337.0,2336.6,1.17875]
[1725985266332,0.10698189,2337.0,2336.6,4.17875]
[1725985266836,0.10698189,2337.0,2336.6,3.0]
[1725985266987,0.10698189,2337.0,2336.5,5.0]
[1725985268499,2.53368732,2337.1,2336.5,9.12630663]
[1725985268836,0.88980304,2337.2,2336.9,2.0]
[1725985268837,0.0026156,2337.2,2336.9,2.0]
[1725985269420,0.0026156,2337.2,2336.9,4.4393]
[1725985270435,0.0026156,2337.2,2336.9,2.0]
[1725985270833,0.0026156,2337.2,2337.0,0.5]
[1725985271238,0.0026156,2337.2,2337.0,3.5]
[1725985271423,0.0026156,2337.2,2337.1,6.58420663]
[1725985271760,0.0026156,2337.2,2337.1,9.58420663]
[1725985275061,0.00093486,2337.2,2337.1,9.58420663]
[1725985275231,0.00093486,2337.2,2337.1,8.33472729]
[1725985275864,0.00093486,2337.2,2337.1,4.20842066]
[1725985276024,0.00093486,2337.2,2337.1,1.20842066]
[1725985276333,0.00093486,2337.2,2337.1,7.74482729]
[1725985276533,0.00093486,2337.2,2337.1,10.74482729]
[1725985277136,0.00093486,2337.2,2337.1,11.31545546]
[1725985277336,0.00093486,2337.2,2337.1,11.86545546]
[1725985277947,0.00093486,2337.2,2337.1,10.74482729]
[1725985279739,0.00093486,2337.2,2337.1,10.98517235]
[1725985282943,0.00093486,2337.2,2337.1,10.74482729]
[1725985284291,0.00093486,2337.2,2337.1,11.31545546]
[1725985285745,0.00093486,2337.2,2337.1,11.29482729]
[1725985286096,0.00093486,2337.2,2337.1,10.74482729]
[1725985286983,0.00093486,2337.2,2337.1,1.20842066]
[1725985287149,0.00093486,2337.2,2337.0,0.5]
[1725985287342,0.00093486,2337.2,2337.1,4.12630663]
[1725985288350,0.00093486,2337.2,2337.1,7.12630663]
[1725985289001,0.00093486,2337.2,2337.1,3.0]
[1725985289305,0.00093486,2337.2,2337.0,3.0]
[1725985289470,2.39603486,2337.2,2336.9,2.0]
[1725985289677,2.39603486,2337.2,2336.6,2.0]
[1725985289869,2.39603486,2337.2,2336.6,3.35963066]
[1725985290271,0.10697594,2337.1,2336.3,6.12630663]
[1725985290479,2.4543,2337.0,2336.2,0.44755144]
[1725985290803,2.56131119,2336.9,2336.2,0.44755144]
[1725985291505,0.10698915,2336.8,2336.4,2.0]
[1725985291677,2.3132,2336.7,2336.2,0.44755144]
[1725985291867,2.3132,2336.7,2336.2,3.44755144]
[1725985293303,2.3132,2336.7,2336.2,4.40493725]
[1725985294395,0.10699657,2336.6,2336.2,3.44755144]
[1725985294576,2.4562,2336.5,2336.2,0.44755144]
[1725985294777,0.10700936,2336.4,2336.2,0.44755144]
[1725985295363,0.10616936,2336.4,2336.2,0.44755144]
[1725985296191,2.2862,2336.3,2336.2,0.44755144]
[1725985297234,2.2862,2336.3,2335.8,0.02257194]
[1725985297535,2.2862,2336.3,2335.8,2.02257194]
[1725985297700,0.10618818,2336.2,2335.8,5.02257194]
[1725985298233,2.2862,2336.3,2335.8,5.9374598]
[1725985298431,2.2862,2336.3,2335.9,4.12630663]
[1725985298591,2.2862,2336.3,2335.8,5.9374598]
[1725985299534,2.2862,2336.3,2335.8,6.50808797]
[1725985299740,2.2862,2336.3,2335.9,1.06343946]
[1725985299912,2.2862,2336.3,2335.9,4.06343946]
[1725985301242,2.3456,2336.7,2335.9,8.18974609]
[1725985301437,2.3456,2336.7,2336.1,6.12630663]
[1725985301438,2.45176307,2336.7,2336.1,6.12630663]
[1725985301607,2.45176307,2336.7,2336.1,2.0]
[1725985301807,2.45176307,2336.7,2336.1,5.0]
[1725985304250,2.3456,2336.7,2336.1,11.60530663]
[1725985304456,2.3456,2336.7,2336.3,4.12630663]
[1725985304811,2.3456,2336.7,2336.2,1.26836012]
[1725985305007,2.3456,2336.7,2336.2,4.26836012]
[1725985307830,0.10699235,2336.6,2336.2,4.26836012]
[1725985308156,0.10699235,2336.6,2336.2,3.0]
[1725985308343,0.10699235,2336.6,2336.1,2.0]
[1725985308746,2.4609,2336.5,2336.1,2.0]
[1725985308951,0.10700985,2336.4,2336.1,2.0]
[1725985309143,0.10700985,2336.4,2335.9,3.0]
[1725985309347,0.10700985,2336.4,2335.9,4.70278786]
[1725985310767,0.10700985,2336.4,2335.9,8.82909449]
[1725985311772,2.4609,2336.5,2335.9,8.82909449]
[1725985312874,0.10700531,2336.4,2335.9,4.70278786]
[1725985313060,2.4478,2336.3,2335.9,3.0]
[1725985313264,2.4478,2336.3,2335.8,5.02257194]
[1725985313977,0.10701854,2336.2,2335.9,0.91488786]
[1725985314357,0.10701854,2336.2,2335.9,3.91488786]
[1725985316461,2.4478,2336.3,2335.9,3.91488786]
[1725985316756,2.4478,2336.3,2335.9,8.04119449]
[1725985316961,0.10702131,2336.8,2335.9,8.04119449]
[1725985316962,2.4421,2336.7,2336.0,1.81230481]
[1725985317160,0.10700617,2336.6,2336.0,4.81230481]
[1725985317403,2.3497,2336.5,2336.0,4.24167664]
[1725985317562,2.3497,2336.5,2336.1,1.13679833]
[1725985317758,0.10700815,2336.4,2336.1,4.13679833]
[1725985318123,2.3695,2336.3,2336.0,3.0]
[1725985318290,2.3695,2336.3,2336.0,0.50225719]
[1725985318490,2.3695,2336.3,2335.8,5.59320011]
[1725985320494,2.3695,2336.3,2335.9,4.6969348]
[1725985320796,2.3746,2336.7,2336.0,3.0]
[1725985320967,2.3746,2336.7,2336.1,6.89600011]
[1725985321160,0.10700627,2337.0,2336.2,2.4174]
[1725985321161,2.3746,2336.9,2336.2,2.4174]
[1725985321373,0.10699434,2336.8,2336.2,2.4174]
[1725985321673,0.10699434,2336.8,2336.3,0.91143348]
[1725985321896,0.10699434,2336.8,2336.1,2.0]
[1725985321897,2.4503,2336.7,2336.1,2.0]
[1725985322066,0.10700631,2336.6,2336.1,2.0]
[1725985322764,2.4462,2336.5,2336.0,3.0]
[1725985322966,0.10701875,2336.4,2335.8,0.02257194]
[1725985323196,0.10701875,2336.4,2335.8,0.53136195]
[1725985323405,0.10701875,2336.4,2335.8,3.53136195]
[1725985324503,2.4462,2336.3,2335.8,3.02257194]
[1725985324693,0.10702935,2336.2,2335.8,0.02257194]
[1725985324894,2.3306,2336.1,2335.9,3.0]
[1725985325216,2.3306,2335.9,2335.8,0.02257194]
[1725985325362,6.45690663,2335.9,2335.8,0.02257194]
[1725985325791,2.3306,2335.9,2335.8,0.02257194]
[1725985326613,2.43765136,2335.9,2335.8,0.02257194]
[1725985328093,2.3306,2335.9,2335.8,0.02257194]
[1725985329466,2.4665,2336.1,2335.8,0.02257194]
[1725985329767,2.4665,2336.6,2335.8,2.02257194]
[1725985329968,2.4665,2336.6,2335.9,4.74119449]
[1725985329969,0.10701765,2336.5,2335.9,4.74119449]
[1725985330186,0.10701765,2336.5,2335.9,4.12630663]
[1725985331197,0.10701049,2336.6,2335.9,4.12630663]
[1725985331528,0.10701049,2336.6,2336.0,0.91404067]
[1725985331821,0.10701049,2336.6,2336.0,3.91404067]
[1725985334481,0.09770329,2336.6,2336.0,3.91404067]
[1725985335128,0.98488587,2336.7,2336.0,3.91404067]
[1725985335418,0.88718744,2336.7,2336.4,2.0]
[1725985338786,0.88718744,2336.7,2336.3,5.0]
[1725985338995,0.88718744,2336.7,2336.3,9.6969348]
[1725985339194,0.88718744,2336.7,2336.5,4.12630663]
[1725985339490,0.88718744,2336.7,2336.6,4.98012817]
[1725985339691,0.88718744,2336.7,2336.6,7.4095]
[1725985341436,1.33078116,2336.8,2336.6,7.4095]
[1725985341618,0.88718744,2337.5,2337.0,2.0]
[1725985341825,1.6542914,2337.5,2337.0,2.0]
[1725985342020,0.99414935,2337.6,2337.0,5.0]
[1725985342206,0.76716818,2337.5,2337.1,0.91263066]
[1725985342405,0.99414935,2337.6,2337.1,3.0]
[1725985342601,0.76695869,2337.5,2337.1,3.0]
[1725985342815,0.76695869,2337.5,2337.1,0.5]
[1725985343085,0.76695869,2337.5,2337.0,2.0]
[1725985343086,0.88718744,2337.5,2337.0,2.0]
[1725985343316,0.99414935,2337.6,2337.0,2.0]
[1725985343523,0.02444166,2337.7,2337.3,2.0]
[1725985344120,2.43534166,2337.7,2337.2,3.0]
[1725985344471,2.91098178,2337.6,2337.0,5.0]
[1725985344633,2.91098178,2337.6,2337.0,2.0]
[1725985344634,0.99414604,2337.6,2337.0,2.0]
[1725985345922,0.76661644,2337.5,2336.8,3.0]
[1725985346223,0.10697842,2337.4,2336.7,7.12630663]
[1725985346452,0.10697842,2337.4,2336.7,7.68830813]
[1725985346658,0.10697842,2337.4,2336.7,8.2589363]
[1725985347051,0.99416311,2337.6,2336.7,8.2589363]
[1725985347223,0.99416311,2337.6,2336.8,1.26357363]
[1725985347429,0.10697567,2337.6,2336.8,4.26357363]
[1725985348963,0.10697567,2337.6,2336.8,3.0]
[1725985349377,0.10697567,2337.6,2336.9,6.12630663]
[1725985349742,0.10697567,2337.6,2336.9,2.0]
[1725985350263,0.10697567,2337.6,2336.9,5.0]
[1725985350427,0.10697567,2337.6,2336.9,2.0]
[1725985354268,0.10697567,2337.6,2336.9,2.67443566]
[1725985355982,0.10697567,2337.6,2336.9,6.80074229]
[1725985356674,0.10697567,2337.6,2337.0,3.0]
[1725985356882,0.10697567,2337.6,2337.1,4.12630663]
[1725985357087,2.54230348,2337.7,2337.2,5.0]
[1725985357381,2.54230348,2337.7,2337.2,5.71263066]
[1725985357971,0.02444166,2337.7,2337.2,5.71263066]
[1725985358360,0.02444166,2337.7,2337.3,4.12630663]
[1725985358686,0.02444166,2337.7,2337.4,3.98389373]
[1725985359239,0.02444166,2337.7,2337.5,3.0]
[1725985359485,0.02444166,2337.7,2337.3,3.0]
[1725985359867,2.3707,2337.6,2337.3,3.0]
[1725985360078,2.3707,2337.6,2336.9,6.80074229]
[1725985360079,0.10696469,2337.5,2337.0,3.0]
[1725985360300,0.10696469,2337.5,2337.0,3.91236423]
[1725985361002,0.10696469,2337.5,2336.6,2.0]
[1725985361293,2.3112,2337.4,2336.7,4.12630663]
[1725985361498,0.10698047,2337.3,2336.7,5.27454006]
[1725985361666,0.10698047,2337.3,2336.7,6.00199407]
[1725985361863,2.3112,2337.4,2336.9,6.12630663]
[1725985362097,2.3112,2337.4,2337.0,0.57760526]
[1725985362395,2.3112,2337.4,2336.9,6.6969348]
[1725985362590,2.3112,2337.4,2337.0,0.90484348]
[1725985363593,2.49437941,2337.6,2337.0,0.90484348]
[1725985364254,2.49437941,2337.6,2336.9,6.12630663]
[1725985369256,3.38156685,2337.6,2336.9,6.12630663]
[1725985369660,3.38156685,2337.6,2336.9,2.0]
[1725985369859,2.2541,2337.5,2336.9,2.0]
[1725985370065,0.10697266,2337.4,2336.9,2.0]
[1725985370836,2.2541,2337.3,2336.9,2.0]
[1725985371141,2.2541,2337.1,2336.7,3.0]
[1725985371350,2.2541,2337.1,2336.6,2.0]
[1725985371351,0.10699009,2337.0,2336.6,2.0]
[1725985371842,2.2541,2336.9,2336.6,2.0]
[1725985372035,0.10699138,2336.8,2336.6,2.0]
[1725985373546,0.10699138,2336.8,2336.6,2.5]
[1725985374348,2.2541,2336.9,2336.6,2.5]
[1725985374755,0.10699119,2336.8,2336.6,2.5]
[1725985374957,2.2541,2336.9,2336.6,2.5]
[1725985375121,0.10699127,2336.8,2336.6,2.5]
[1725985375323,2.2541,2336.9,2336.6,2.5]
[1725985375662,2.3683,2337.1,2336.7,0.25]
[1725985379116,0.10699115,2337.2,2336.7,0.91955711]
[1725985379627,0.10699115,2337.2,2336.8,0.66955711]
[1725985380246,0.10697606,2337.2,2336.8,0.66955711]
[1725985380418,0.99416813,2337.3,2336.8,1.24457282]
[1725985380621,0.88699547,2337.2,2336.9,0.66955711]
[1725985380853,0.10697609,2337.2,2336.9,0.66955711]
[1725985381162,0.10697609,2337.2,2336.7,0.25]
[1725985381371,0.99416353,2337.2,2336.8,0.66956494]
[1725985381568,0.99416353,2337.2,2336.7,0.25]
[1725985381862,0.88718744,2337.2,2336.8,0.66956112]
[1725985382078,9.5519,2337.4,2337.1,2.0]
[1725985382079,8.16718744,2337.4,2337.1,2.0]
[1725985382238,0.99415569,2337.4,2337.1,2.0]
[1725985382440,0.99415569,2337.4,2337.2,0.26695611]
[1725985383486,0.99415569,2337.4,2337.1,2.0]
[1725985383838,0.78299942,2337.3,2337.1,2.0]
[1725985384583,0.1069683,2337.2,2337.1,2.0]
[1725985385172,0.99416075,2337.3,2337.1,2.0]
[1725985385781,0.1069731,2337.2,2337.1,2.0]
[1725985386056,0.99416052,2337.3,2337.1,2.0]
[1725985386263,0.10697325,2337.2,2336.9,4.60679626]
[1725985386664,0.99416373,2337.3,2336.9,4.60679626]
[1725985386969,0.99416373,2337.3,2336.9,5.29247589]
[1725985387579,1.33078116,2337.4,2336.9,5.29247589]
[1725985387580,0.88718744,2337.4,2337.1,2.0]
[1725985387790,0.88718744,2337.5,2337.2,0.36067963]
[1725985387991,2.86918286,2337.5,2337.2,0.36067963]
[1725985388298,0.79279817,2337.4,2337.2,3.36067963]
[1725985388589,0.9116291,2337.7,2337.4,2.0]
[1725985389465,0.79261184,2337.6,2337.4,2.0]
[1725985389682,0.10695211,2337.5,2337.4,2.0]
[1725985389887,2.9757064,2337.5,2337.1,2.0]
[1725985390053,0.79262674,2337.4,2337.1,2.0]
[1725985390253,0.10697106,2337.3,2337.1,2.0]
[1725985390496,1.78673318,2337.3,2337.1,2.0]
[1725985390700,0.9941585,2337.3,2337.1,2.0]
[1725985391054,0.10697106,2337.3,2337.1,2.0]
[1725985391494,0.99415856,2337.4,2337.1,2.0]
[1725985391663,0.10697112,2337.4,2337.1,2.0]
[1725985391865,0.79259724,2337.3,2337.1,2.0]
[1725985392069,0.99415856,2337.4,2337.1,2.0]
[1725985392372,1.33078116,2337.5,2337.1,4.26746277]
[1725985392373,0.99415697,2337.5,2337.1,4.26746277]
[1725985392569,0.99415697,2337.5,2337.1,2.66067843]
[1725985392791,0.79258455,2337.4,2337.1,2.66067843]
[1725985393108,0.99415697,2337.5,2337.1,2.66067843]
[1725985393269,0.88718744,2337.5,2337.2,0.42674628]
[1725985393473,0.88718744,2337.5,2337.4,2.0]
[1725985394069,0.88718744,2337.5,2337.2,3.42674628]
[1725985394256,0.88718744,2337.5,2337.1,3.73177392]
[1725985394257,0.10696679,2337.4,2337.1,3.73177392]
[1725985394608,0.89934614,2337.4,2337.1,2.53554774]
[1725985394899,0.89934614,2337.4,2337.1,2.0]
[1725985396380,0.10696679,2337.4,2337.1,2.0]
[1725985396981,3.47465844,2337.5,2337.1,2.66066432]
[1725985397198,3.47465844,2337.5,2337.2,4.12630663]
[1725985397199,0.88718744,2337.5,2337.2,4.12630663]
[1725985397408,0.99414852,2337.5,2337.2,2.10494833]
[1725985397565,0.99414852,2337.5,2337.1,2.66066432]
[1725985397900,0.99414852,2337.5,2337.1,3.73169814]
[1725985398106,0.99414852,2337.5,2337.1,2.66066432]
[1725985398399,0.99414852,2337.5,2337.1,2.0]
[1725985398565,2.3714,2337.4,2337.1,2.0]
[1725985398765,0.10696695,2337.3,2337.1,2.0]
[1725985398965,0.10696695,2337.3,2336.8,5.0]
[1725985399180,0.10696695,2337.3,2336.9,0.5]
[1725985399381,0.10696695,2337.3,2336.9,3.0]
[1725985399583,0.10696695,2337.3,2336.8,2.0]
[1725985400200,0.10696695,2337.3,2336.8,6.12630663]
[1725985400405,0.10696695,2337.3,2336.9,3.0]
[1725985402580,0.10696695,2337.3,2336.8,2.0]
[1725985402782,0.10696695,2337.3,2336.8,3.4712573]
[1725985403111,0.10696695,2337.3,2336.9,3.0]
[1725985403313,0.9941669,2337.5,2337.3,2.0]
[1725985403486,0.88718744,2337.5,2337.3,2.0]
[1725985404913,0.88718744,2337.5,2337.3,2.5]
[1725985406172,0.88718744,2337.5,2337.3,5.5]
[1725985406425,1.79881654,2337.7,2337.3,5.5]
[1725985406426,0.02444166,2337.7,2337.3,5.5]
[1725985406574,1.70480025,2337.7,2337.6,2.0]
[1725985406917,2.89452714,2337.7,2337.6,2.85470066]
[1725985407082,2.89453745,2337.7,2337.6,2.85470066]
[1725985407271,0.02444166,2337.7,2337.6,2.85470066]
[1725985407471,0.81753909,2337.7,2337.6,2.85470066]
[1725985408323,0.02444166,2337.7,2337.6,2.85470066]
[1725985408552,0.8173621,2337.7,2337.6,2.85470066]
[1725985408850,0.8173621,2337.7,2337.6,2.0]
[1725985409250,1.70454954,2337.7,2337.6,2.0]
[1725985409406,0.8173621,2337.7,2337.6,2.0]
[1725985409914,0.81731666,2337.7,2337.6,2.0]
[1725985410114,0.81731836,2337.7,2337.6,2.0]
[1725985411513,0.02444166,2337.7,2337.6,8.54700663]
[1725985411712,0.02444166,2337.7,2337.6,12.40170729]
[1725985412253,0.02444166,2337.7,2337.6,13.09855439]
[1725985412420,0.02444166,2337.7,2337.6,12.40170729]
[1725985413754,0.02444166,2337.7,2337.6,13.86867874]
[1725985413917,0.02444166,2337.7,2337.6,13.29805057]
[1725985414119,0.02444166,2337.7,2337.6,12.40170729]
[1725985422109,0.02444166,2337.7,2337.6,12.63531918]
[1725985426430,0.02444166,2337.7,2337.6,13.20594735]
[1725985427508,0.02444166,2337.7,2337.6,12.97233546]
[1725985427706,0.02444166,2337.7,2337.6,12.40170729]
[1725985428127,0.02444166,2337.7,2337.6,9.98100729]
[1725985429858,0.02444166,2337.7,2337.6,9.12630663]
[1725985430131,0.02444166,2337.7,2337.6,5.0]
[1725985430291,0.02444166,2337.7,2337.6,9.12630663]
[1725985434350,0.02444166,2337.7,2337.6,5.0]
[1725985434554,0.02444166,2337.7,2337.6,2.0]
[1725985435578,0.02444166,2337.7,2337.6,6.12630663]
[1725985435874,0.02444166,2337.7,2337.6,10.27454006]
[1725985436420,0.02444166,2337.7,2337.6,9.6969348]
[1725985436859,0.02444166,2337.7,2337.6,9.12630663]
[1725985442166,0.02444166,2337.7,2337.6,11.40450663]
[1725985442380,0.02444166,2337.7,2337.6,12.54495729]
[1725985442529,0.02444166,2337.7,2337.6,13.69319072]
[1725985443338,0.02444166,2337.7,2337.6,17.81949735]
[1725985443573,0.02444166,2337.7,2337.6,13.69319072]
[1725985443773,0.02444166,2337.7,2337.6,17.81949735]
[1725985443927,0.02444166,2337.7,2337.6,18.84430178]
[1725985444132,0.02444166,2337.7,2337.6,14.14038989]
[1725985444430,0.02444166,2337.7,2337.6,17.24189209]
[1725985444626,0.02444166,2337.7,2337.6,18.26669652]
[1725985444831,0.02444166,2337.7,2337.6,14.80948104]
[1725985445041,0.02444166,2337.7,2337.6,17.91098324]
[1725985445278,0.02444166,2337.7,2337.6,19.83213095]
[1725985445646,0.0235068,2338.1,2337.6,19.83213095]
[1725985445647,0.0235068,2338.1,2338.0,2.0]
[1725985446005,0.0235068,2338.1,2338.0,8.40450663]
[1725985446163,0.0235068,2338.1,2338.0,11.40450663]
[1725985446328,0.0235068,2338.1,2338.0,12.07359778]
[1725985447142,0.0235068,2338.1,2338.0,11.40450663]
[1725985447351,0.0235068,2338.1,2338.0,16.45056032]
[1725985447936,0.0235068,2338.1,2338.0,14.17236032]
[1725985448630,0.0235068,2338.1,2338.0,13.50334469]
[1725985448834,0.0235068,2338.1,2338.0,14.17236032]
[1725985450490,0.0235068,2338.1,2338.0,13.50334469]
[1725985450648,0.0235068,2338.1,2338.0,14.17239937]
[1725985450849,0.0235068,2338.1,2338.0,9.79536131]
[1725985454063,0.0235068,2338.1,2338.0,5.66905468]
[1725985454400,0.0235068,2338.1,2338.0,7.56755474]
[1725985455271,0.0235068,2338.1,2338.0,7.56757244]
[1725985456291,0.0235068,2338.1,2338.0,9.78230811]
[1725985456496,0.0235068,2338.1,2338.0,10.81760174]
[1725985457198,0.0235068,2338.1,2338.0,10.14848892]
[1725985458818,0.0235068,2338.1,2338.0,11.25297286]
[1725985459379,0.0235068,2338.1,2338.0,10.14848892]
[1725985460420,0.0235068,2338.1,2338.0,10.58387202]
[1725985460714,0.0235068,2338.1,2338.0,11.35289523]
[1725985461281,0.0235068,2338.1,2338.0,10.81760265]
[1725985463416,0.0235068,2338.1,2338.0,10.14848892]
[1725985463720,0.0235068,2338.1,2338.0,10.8175792]
[1725985466289,0.0235068,2338.1,2338.0,9.78228557]
[1725985466838,0.0235068,2338.1,2338.0,9.11319529]
[1725985467048,0.0235068,2338.1,2338.0,9.78229243]
[1725985472448,0.0235068,2338.1,2338.0,10.47887217]
[1725985472596,0.0235068,2338.1,2338.0,11.04950034]
[1725985472800,0.0235068,2338.1,2338.0,11.93977244]
[1725985476932,0.0235068,2338.1,2338.0,11.27059561]
[1725985477104,0.0235068,2338.1,2338.0,11.93960195]
[1725985477307,0.0235068,2338.1,2338.0,12.96861726]
[1725985477498,0.0235068,2338.1,2338.0,11.93960195]
[1725985478249,0.0235068,2338.1,2338.0,9.72488045]
[1725985479239,0.0235068,2338.1,2338.0,12.10948045]
[1725985479608,0.0235068,2338.1,2338.0,13.34911496]
[1725985479800,0.0235068,2338.1,2338.0,12.68010862]
[1725985480207,0.0235068,2338.1,2338.0,12.8802749]
[1725985480445,0.0235068,2338.1,2338.0,14.82339373]
[1725985480705,0.0235068,2338.1,2338.0,14.60272056]
[1725985480906,0.0235068,2338.1,2338.0,15.05105372]
[1725985481125,0.0235068,2338.1,2338.0,13.25772106]
[1725985481425,0.0235068,2338.1,2338.0,15.051081]
[1725985481621,0.0235068,2338.1,2338.0,14.02523806]
[1725985481833,0.0235068,2338.1,2338.0,13.45460989]
[1725985482012,0.0235068,2338.1,2338.0,11.07000989]
[1725985482212,0.0235068,2338.1,2338.0,11.29067567]
[1725985482413,0.0235068,2338.1,2338.0,11.07000989]
[1725985483022,0.0235068,2338.1,2338.0,10.39391959]
[1725985483219,0.0235068,2338.1,2338.0,9.72488763]
[1725985483422,0.0235068,2338.1,2338.0,10.62173401]
[1725985483650,0.0235068,2338.1,2338.0,11.28713729]
[1725985487426,0.0235068,2338.1,2338.0,11.28790543]
[1725985487650,0.0235068,2338.1,2338.0,10.39026811]
[1725985487825,0.0235068,2338.1,2338.0,10.61883718]
[1725985488165,0.0235068,2338.1,2338.0,9.72122091]
[1725985488324,0.0235068,2338.1,2338.0,11.06634317]
[1725985488964,0.0235068,2338.1,2338.0,11.18965581]
[1725985489140,0.0235068,2338.1,2338.0,12.2145766]
[1725985490520,0.0235068,2338.1,2338.0,10.85272975]
[1725985490865,0.0235068,2338.1,2338.0,10.86946776]
[1725985491107,0.0235068,2338.1,2338.0,11.76726578]
[1725985491248,0.0235068,2338.1,2338.0,12.21459002]
[1725985492347,0.0235068,2338.1,2338.0,10.86946776]
[1725985492535,0.0235068,2338.1,2338.0,12.21459002]
[1725985493475,0.0235068,2338.1,2338.0,11.76724106]
[1725985493764,0.0235068,2338.1,2338.0,11.76724783]
[1725985493935,0.0235068,2338.1,2338.0,11.18964257]
[1725985495104,0.0235068,2338.1,2338.0,12.21459679]
[1725985495267,0.0235068,2338.1,2338.0,11.76728899]
[1725985495457,0.0235068,2338.1,2338.0,12.21459679]
[1725985495860,0.0235068,2338.1,2338.0,14.63899679]
[1725985496693,0.0235068,2338.1,2338.0,16.12449795]
[1725985496902,0.0235068,2338.1,2338.0,15.08718763]
[1725985497199,0.0235068,2338.1,2338.0,16.12445111]
[1725985497751,0.0235068,2338.1,2338.0,14.64037723]
[1725985497954,0.0235068,2338.1,2338.0,11.63837197]
[1725985498180,0.0235068,2338.1,2338.0,11.18956065]
[1725985498800,0.0235068,2338.1,2338.0,10.29182243]
[1725985499207,0.0235068,2338.1,2338.0,10.61893634]
[1725985500297,0.0235068,2338.1,2338.0,13.30559725]
[1725985500452,0.0235068,2338.1,2338.0,14.65214679]
[1725985500655,0.0235068,2338.1,2338.0,16.13622067]
[1725985501491,0.0235068,2338.1,2338.0,11.06775353]
[1725985501702,0.0235068,2338.1,2338.0,11.06784288]
[1725985501902,0.0235068,2338.1,2338.0,11.90676073]
[1725985502212,0.0235068,2338.1,2338.0,13.25331127]
[1725985502422,0.0235068,2338.1,2338.0,10.86946049]
[1725985502621,0.0235068,2338.1,2338.0,13.70008391]
[1725985502921,0.0235068,2338.1,2338.0,12.21599583]
[1725985504905,0.0235068,2338.1,2338.0,47.21599583]
[1725985505111,0.0235068,2338.1,2338.0,49.63609825]
[1725985505740,0.0235068,2338.6,2338.5,2.0]
[1725985505879,0.0235068,2338.6,2338.5,6.15791023]
[1725985506080,0.0235068,2338.6,2338.5,10.1773521]
[1725985506523,0.0235068,2338.6,2338.5,8.830911]
[1725985507036,0.0235068,2338.6,2338.5,10.17679694]
[1725985507327,0.0235068,2339.1,2339.0,2.0]
[1725985507528,0.0235068,2339.1,2339.0,6.36180904]
[1725985507711,0.0235068,2339.1,2339.0,8.26028283]
[1725985507894,0.0235068,2339.1,2339.0,7.56377299]
[1725985508223,0.0235068,2339.1,2339.0,5.6652992]
[1725985508919,0.0235068,2339.1,2339.0,5.0]
[1725985509128,0.0235068,2339.1,2339.0,5.66517207]
[1725985509480,0.0235068,2339.1,2339.0,5.66517412]
[1725985509679,0.0235068,2339.1,2339.0,6.71235591]
[1725985510513,0.0235068,2339.1,2339.0,8.70392353]
[1725985510816,0.0235068,2339.1,2339.0,8.13329536]
[1725985511184,0.0235068,2339.5,2339.4,6.11029408]
[1725985511382,0.0235068,2339.5,2339.4,9.72132349]
[1725985511615,0.0235068,2339.5,2339.4,9.11029408]
[1725985512193,0.0235068,2339.5,2339.4,9.77535326]
[1725985512421,0.0235068,2339.5,2339.4,9.11029408]
[1725985513021,0.0235068,2339.5,2339.4,5.66504657]
[1725985513226,0.0235068,2339.5,2339.4,5.0]
[1725985513435,0.0235068,2339.5,2339.4,9.11029408]
[1725985514594,0.0235068,2339.5,2339.4,5.0]
[1725985515020,2.4376068,2339.5,2339.4,5.0]
[1725985515214,2.4376068,2339.5,2339.4,2.0]
[1725985515418,2.4376068,2339.5,2339.4,5.0]
[1725985515583,2.4376068,2339.5,2339.4,2.0]
[1725985522434,0.0235068,2339.5,2339.4,2.0]
[1725985522602,0.0235068,2339.5,2339.4,2.61102941]
[1725985525007,2.3933068,2339.5,2339.4,2.0]
[1725985532097,2.3933068,2339.5,2339.1,2.0]
[1725985532441,0.10687181,2339.4,2339.1,2.0]
[1725985533006,2.3582,2339.3,2339.1,2.0]
[1725985533345,0.10687933,2339.2,2339.1,2.0]
[1725985534017,2.2737,2339.1,2338.9,1.33023047]
[1725985534223,0.10688849,2339.0,2338.9,1.33023047]
[1725985534542,2.53478849,2339.0,2338.9,1.33023047]
[1725985534751,2.4279,2339.0,2338.9,1.33023047]
[1725985536034,2.4279,2339.0,2338.8,2.0]
[1725985536825,2.4279,2339.0,2338.8,2.57062817]
[1725985537826,2.4279,2339.0,2338.8,2.0]
[1725985538026,2.4938,2339.3,2338.8,5.0]
[1725985538462,2.4938,2339.3,2338.8,5.56815821]
[1725985538683,2.4938,2339.3,2338.8,6.13878638]
[1725985538868,2.4938,2339.3,2339.2,2.0]
[1725985539988,2.3517068,2339.5,2339.2,2.0]
[1725985542253,2.3015,2339.3,2339.2,2.0]
[1725985542455,2.3015,2339.3,2338.9,2.0]
[1725985542777,0.10688055,2339.2,2338.9,2.0]
[1725985544384,2.3759,2339.1,2338.9,2.0]
[1725985545666,2.48278891,2339.4,2338.9,2.0]
[1725985546222,2.3759,2339.4,2338.9,7.75304464]
[1725985546357,2.3759,2339.4,2339.2,2.0]
[1725985547559,0.0235068,2339.5,2339.2,2.0]
[1725985550388,0.0235068,2339.5,2339.2,2.66518367]
[1725985550701,0.0235068,2339.5,2339.2,2.0]
[1725985553292,0.0235068,2339.5,2339.3,0.66515328]
[1725985553488,0.0235068,2339.5,2339.2,2.0]
[1725985556833,0.91361528,2339.5,2339.2,2.0]
[1725985557535,0.0235068,2339.5,2339.2,2.0]
[1725985558334,0.91361528,2339.5,2339.2,2.0]
[1725985558539,1.66137102,2339.5,2339.2,8.59549408]
[1725985558695,1.66137102,2339.5,2339.3,4.52466733]
[1725985558696,0.0235068,2339.5,2339.3,4.52466733]
[1725985558906,0.0235068,2339.5,2339.4,0.66511792]
[1725985559238,2.89015477,2339.5,2339.2,2.0]
[1725985559402,1.0204839,2339.5,2339.3,0.66515602]